[Event "Late-Titled-Tuesday-Blitz-June-04-2024"]
[Site "Chess.com"]
[Date "2024.06.04"]
[Round "6"]
[White "albayo"]
[Black "Charodej1"]
[Result "1-0"]
[WhiteElo "2351"]
[BlackElo "2467"]
[TimeControl "180+1"]
[EndTime "15:06:18 PDT"]
[Termination "albayo won by resignation"]

1. Nf3 {[%clk 0:02:59.9]} 1... Nf6 {[%clk 0:02:56.8]} 2. c4 {[%clk 0:03:00.1]}
2... e6 {[%clk 0:02:53.5]} 3. g3 {[%clk 0:03:00.5]} 3... d5 {[%clk 0:02:53.1]}
4. Bg2 {[%clk 0:03:01.1]} 4... Be7 {[%clk 0:02:50.3]} 5. O-O {[%clk 0:03:01.3]}
5... O-O {[%clk 0:02:50.5]} 6. Qc2 {[%clk 0:03:02]} 6... c5 {[%clk 0:02:45.8]}
7. d3 {[%clk 0:02:58.7]} 7... Nc6 {[%clk 0:02:44.3]} 8. Nbd2 {[%clk 0:02:58.9]}
8... b6 {[%clk 0:02:40.5]} 9. b3 {[%clk 0:02:59.1]} 9... Bb7 {[%clk 0:02:36.1]}
10. Bb2 {[%clk 0:02:59.4]} 10... Qc7 {[%clk 0:02:29.9]} 11. a3 {[%clk
0:02:49.5]} 11... Rac8 {[%clk 0:02:26.1]} 12. Rac1 {[%clk 0:02:43.4]} 12... Rfd8
{[%clk 0:02:25.3]} 13. Rfd1 {[%clk 0:02:42.2]} 13... d4 {[%clk 0:02:18.2]} 14.
Qb1 {[%clk 0:02:42.3]} 14... Qb8 {[%clk 0:02:16.3]} 15. Nf1 {[%clk 0:02:42.5]}
15... e5 {[%clk 0:02:15.4]} 16. e4 {[%clk 0:02:39.7]} 16... a6 {[%clk
0:02:03.6]} 17. Rc2 {[%clk 0:02:37.2]} 17... b5 {[%clk 0:02:02.7]} 18. Bc1
{[%clk 0:02:36.4]} 18... Rf8 {[%clk 0:01:51.9]} 19. Nh4 {[%clk 0:02:36.1]} 19...
g6 {[%clk 0:01:51.4]} 20. Bh6 {[%clk 0:02:35.2]} 20... Rfe8 {[%clk 0:01:46.9]}
21. cxb5 {[%clk 0:02:31.5]} 21... axb5 {[%clk 0:01:46.7]} 22. Rdc1 {[%clk
0:02:32]} 22... Nd8 {[%clk 0:01:29.9]} 23. Bh3 {[%clk 0:02:29.2]} 23... Rc6
{[%clk 0:01:24.5]} 24. f4 {[%clk 0:02:21.8]} 24... c4 {[%clk 0:01:11.9]} 25.
bxc4 {[%clk 0:02:18]} 25... Bxa3 {[%clk 0:01:08.5]} 26. cxb5 {[%clk 0:02:16.3]}
26... Rb6 {[%clk 0:00:55.5]} 27. fxe5 {[%clk 0:01:51.6]} 27... Qxe5 {[%clk
0:00:55]} 28. Bf4 {[%clk 0:01:36.5]} 28... Qxb5 {[%clk 0:00:54.8]} 29. Qxb5
{[%clk 0:01:32.8]} 29... Rxb5 {[%clk 0:00:55]} 30. Ra1 {[%clk 0:01:31.9]} 30...
Bb4 {[%clk 0:00:35.5]} 31. Rb1 {[%clk 0:01:29.9]} 31... Nc6 {[%clk 0:00:33.6]}
32. Nf3 {[%clk 0:01:27.2]} 32... Ra8 {[%clk 0:00:16.5]} 33. Bd6 {[%clk
0:01:09.6]} 33... Raa5 {[%clk 0:00:14.9]} 34. Bc7 {[%clk 0:00:55.5]} 34... Ra3
{[%clk 0:00:10.6]} 35. Rcb2 {[%clk 0:00:40.1]} 35... Rxd3 {[%clk 0:00:10.1]} 36.
N1d2 {[%clk 0:00:29.8]} 36... Bxd2 {[%clk 0:00:07.9]} 37. Rxb5 {[%clk
0:00:28.8]} 37... Be3+ {[%clk 0:00:08.4]} 38. Kg2 {[%clk 0:00:25.8]} 38... Ba6
{[%clk 0:00:07]} 39. Rb8+ {[%clk 0:00:22.8]} 39... Kg7 {[%clk 0:00:06.9]} 40.
R8b3 {[%clk 0:00:23.7]} 40... Rxb3 {[%clk 0:00:05.7]} 41. Rxb3 {[%clk
0:00:24.6]} 41... Nxe4 {[%clk 0:00:06.3]} 42. Be5+ {[%clk 0:00:22.9]} 42... Nxe5
{[%clk 0:00:06.3]} 43. Nxe5 {[%clk 0:00:23.8]} 43... Be2 {[%clk 0:00:06.3]} 44.
Rb7 {[%clk 0:00:23]} 44... Ng5 {[%clk 0:00:06.4]} 45. Bd7 {[%clk 0:00:18.6]}
45... d3 {[%clk 0:00:06.6]} 46. Bb5 {[%clk 0:00:17.4]} 46... d2 {[%clk
0:00:05.8]} 47. Bxe2 {[%clk 0:00:17.4]} 47... Bd4 {[%clk 0:00:05.4]} 48. Nf3
{[%clk 0:00:15.5]} 48... Nxf3 {[%clk 0:00:05.2]} 49. Kxf3 {[%clk 0:00:16.4]} 1-0

[Event "Late-Titled-Tuesday-Blitz-June-04-2024"]
[Site "Chess.com"]
[Date "2024.06.04"]
[Round "6"]
[White "fpawn"]
[Black "AsaHoffmann"]
[Result "1-0"]
[WhiteElo "2420"]
[BlackElo "2263"]
[TimeControl "180+1"]
[EndTime "15:06:26 PDT"]
[Termination "fpawn won by resignation"]

1. e4 {[%clk 0:02:57.7]} 1... d6 {[%clk 0:02:58.8]} 2. Nc3 {[%clk 0:02:57.7]}
2... c6 {[%clk 0:02:58.7]} 3. d4 {[%clk 0:02:57.8]} 3... a6 {[%clk 0:02:58.3]}
4. f4 {[%clk 0:02:56.8]} 4... d5 {[%clk 0:02:57.5]} 5. e5 {[%clk 0:02:57.2]}
5... h5 {[%clk 0:02:57]} 6. Bd3 {[%clk 0:02:54.9]} 6... g6 {[%clk 0:02:56.3]} 7.
Be3 {[%clk 0:02:54.7]} 7... Nh6 {[%clk 0:02:55.9]} 8. Nf3 {[%clk 0:02:54.5]}
8... Bf5 {[%clk 0:02:54.3]} 9. O-O {[%clk 0:02:53.9]} 9... e6 {[%clk 0:02:54.1]}
10. Qd2 {[%clk 0:02:52.9]} 10... Ng4 {[%clk 0:02:53.6]} 11. Nd1 {[%clk
0:02:51.9]} 11... c5 {[%clk 0:02:52.8]} 12. c3 {[%clk 0:02:51.4]} 12... Nc6
{[%clk 0:02:52.5]} 13. dxc5 {[%clk 0:02:44.5]} 13... a5 {[%clk 0:02:43.2]} 14.
Bd4 {[%clk 0:02:40.1]} 14... a4 {[%clk 0:02:42.4]} 15. h3 {[%clk 0:02:37.3]}
15... Nh6 {[%clk 0:02:39.7]} 16. Ne3 {[%clk 0:02:37.2]} 16... Qa5 {[%clk
0:02:38.4]} 17. Nxf5 {[%clk 0:02:33.5]} 17... Nxf5 {[%clk 0:02:37.9]} 18. Bxf5
{[%clk 0:02:32.3]} 18... gxf5 {[%clk 0:02:37.7]} 19. Qf2 {[%clk 0:02:28.6]}
19... Qb5 {[%clk 0:02:27.7]} 20. Rfb1 {[%clk 0:02:20.8]} 20... Bh6 {[%clk
0:02:24.5]} 21. Ne1 {[%clk 0:02:13.2]} 21... Rg8 {[%clk 0:02:20.2]} 22. b4
{[%clk 0:02:07]} 22... Qc4 {[%clk 0:02:05.9]} 23. Rd1 {[%clk 0:01:35.5]} 23...
h4 {[%clk 0:01:57.2]} 24. Nc2 {[%clk 0:01:26.2]} 24... Rg3 {[%clk 0:01:53.5]}
25. Ne3 {[%clk 0:01:24.9]} 25... Qb5 {[%clk 0:01:46.2]} 26. Nf1 {[%clk
0:01:23.2]} 26... Nxd4 {[%clk 0:01:31.4]} 27. cxd4 {[%clk 0:01:17.5]} 27... Rd3
{[%clk 0:01:22.5]} 28. Qxh4 {[%clk 0:01:15.8]} 28... Bf8 {[%clk 0:01:18.8]} 29.
Rxd3 {[%clk 0:01:14.8]} 29... Qxd3 {[%clk 0:01:18]} 30. Qf2 {[%clk 0:01:15.3]}
30... Qc3 {[%clk 0:01:10]} 31. Rb1 {[%clk 0:01:12]} 31... a3 {[%clk 0:01:09.9]}
32. Qe3 {[%clk 0:01:08.9]} 32... Qc4 {[%clk 0:01:03.4]} 33. Qd2 {[%clk
0:01:02.1]} 33... Bh6 {[%clk 0:01:00.5]} 34. Rc1 {[%clk 0:00:59]} 34... Qb5
{[%clk 0:00:58.4]} 35. g3 {[%clk 0:00:56.5]} 35... Ra4 {[%clk 0:00:56.1]} 36.
Rb1 {[%clk 0:00:53.7]} 36... Kd7 {[%clk 0:00:50.4]} 37. Kf2 {[%clk 0:00:52.1]}
37... Ke7 {[%clk 0:00:44.3]} 38. Rb3 {[%clk 0:00:52]} 38... f6 {[%clk
0:00:43.8]} 39. exf6+ {[%clk 0:00:37.8]} 39... Kxf6 {[%clk 0:00:43.7]} 40. Qe1
{[%clk 0:00:33.6]} 40... Kf7 {[%clk 0:00:43.2]} 41. Ne3 {[%clk 0:00:29.7]} 41...
Bg7 {[%clk 0:00:42.7]} 42. Nc2 {[%clk 0:00:28.9]} 42... Qc4 {[%clk 0:00:42.6]}
43. Qc3 {[%clk 0:00:27.4]} 43... Qb5 {[%clk 0:00:35]} 44. Qd3 {[%clk 0:00:25]}
44... Qc6 {[%clk 0:00:32.9]} 45. g4 {[%clk 0:00:24.3]} 45... fxg4 {[%clk
0:00:30.2]} 46. hxg4 {[%clk 0:00:24.6]} 46... Qe8 {[%clk 0:00:29]} 47. f5 {[%clk
0:00:24.6]} 47... Qh8 {[%clk 0:00:27.1]} 48. fxe6+ {[%clk 0:00:23.7]} 48... Ke7
{[%clk 0:00:27]} 49. Qg3 {[%clk 0:00:22.7]} 49... Bxd4+ {[%clk 0:00:25.9]} 50.
Nxd4 {[%clk 0:00:21.8]} 50... Qxd4+ {[%clk 0:00:25]} 51. Kg2 {[%clk 0:00:21.5]}
51... Qe4+ {[%clk 0:00:24.2]} 52. Qf3 {[%clk 0:00:21]} 52... Kxe6 {[%clk
0:00:22.9]} 53. Re3 {[%clk 0:00:19.6]} 53... Rxb4 {[%clk 0:00:20.6]} 54. Rxe4+
{[%clk 0:00:18]} 54... Rxe4 {[%clk 0:00:19.1]} 55. Qf5+ {[%clk 0:00:18.1]} 55...
Ke7 {[%clk 0:00:18.7]} 56. Qxd5 {[%clk 0:00:18.3]} 56... Re2+ {[%clk 0:00:17.9]}
57. Kf3 {[%clk 0:00:18.6]} 57... Rc2 {[%clk 0:00:17.4]} 58. Qxb7+ {[%clk
0:00:18]} 58... Ke6 {[%clk 0:00:17]} 59. Qb3+ {[%clk 0:00:18.1]} 1-0

[Event "Late-Titled-Tuesday-Blitz-June-04-2024"]
[Site "Chess.com"]
[Date "2024.06.04"]
[Round "6"]
[White "Bilan_Danila"]
[Black "Rital44"]
[Result "1-0"]
[WhiteElo "2568"]
[BlackElo "2689"]
[TimeControl "180+1"]
[EndTime "15:06:31 PDT"]
[Termination "Bilan_Danila won by resignation"]

1. d4 {[%clk 0:02:59.5]} 1... f5 {[%clk 0:03:00.6]} 2. Nf3 {[%clk 0:02:59.8]}
2... Nf6 {[%clk 0:03:00.9]} 3. g3 {[%clk 0:02:59.4]} 3... g6 {[%clk 0:02:59.8]}
4. Bg2 {[%clk 0:03:00.3]} 4... Bg7 {[%clk 0:03:00.4]} 5. O-O {[%clk 0:03:01.2]}
5... O-O {[%clk 0:03:01]} 6. c4 {[%clk 0:03:02.1]} 6... d6 {[%clk 0:03:01.4]} 7.
Nc3 {[%clk 0:03:01.3]} 7... c6 {[%clk 0:02:59.3]} 8. d5 {[%clk 0:02:57.3]} 8...
e5 {[%clk 0:02:55.4]} 9. dxe6 {[%clk 0:02:48.3]} 9... Bxe6 {[%clk 0:02:55.4]}
10. Bf4 {[%clk 0:02:45.9]} 10... Bxc4 {[%clk 0:02:51.5]} 11. Bxd6 {[%clk
0:02:45.7]} 11... Re8 {[%clk 0:02:44.3]} 12. Ne5 {[%clk 0:02:42.4]} 12... Be6
{[%clk 0:02:39]} 13. Qd2 {[%clk 0:02:41.2]} 13... Nbd7 {[%clk 0:02:20]} 14. Rad1
{[%clk 0:02:27.4]} 14... Nb6 {[%clk 0:02:13.9]} 15. Bc5 {[%clk 0:02:08.5]} 15...
Nbd5 {[%clk 0:02:09.6]} 16. Nxd5 {[%clk 0:02:03.4]} 16... Nxd5 {[%clk
0:02:09.2]} 17. Bd4 {[%clk 0:02:01.6]} 17... c5 {[%clk 0:02:05.9]} 18. Bxc5
{[%clk 0:01:51.2]} 18... Bxe5 {[%clk 0:02:05.3]} 19. Bxd5 {[%clk 0:01:50.9]}
19... Bxd5 {[%clk 0:02:05.7]} 20. Qxd5+ {[%clk 0:01:50.8]} 20... Qxd5 {[%clk
0:02:05.9]} 21. Rxd5 {[%clk 0:01:51.4]} 21... Bxb2 {[%clk 0:02:06.1]} 22. e3
{[%clk 0:01:37.7]} 22... b6 {[%clk 0:02:04.3]} 23. Bd4 {[%clk 0:01:21.9]} 23...
Bxd4 {[%clk 0:02:04.2]} 24. Rxd4 {[%clk 0:01:22.8]} 24... Rad8 {[%clk
0:02:04.2]} 25. Rfd1 {[%clk 0:01:22.7]} 25... Rxd4 {[%clk 0:02:04.7]} 26. Rxd4
{[%clk 0:01:23.6]} 26... Re5 {[%clk 0:02:05.1]} 27. a4 {[%clk 0:01:17.2]} 27...
Ra5 {[%clk 0:02:03.9]} 28. f3 {[%clk 0:01:12.7]} 28... Kg7 {[%clk 0:02:02.9]}
29. g4 {[%clk 0:01:12.7]} 29... Kf6 {[%clk 0:02:02.8]} 30. Kf2 {[%clk
0:01:11.9]} 30... Ke5 {[%clk 0:01:48.3]} 31. Kg3 {[%clk 0:01:03.9]} 31... Rd5
{[%clk 0:01:41.5]} 32. Rc4 {[%clk 0:00:54.5]} 32... Rc5 {[%clk 0:01:38.8]} 33.
Rd4 {[%clk 0:00:53.7]} 33... Ke6 {[%clk 0:01:34.6]} 34. Kf4 {[%clk 0:00:49.5]}
34... h6 {[%clk 0:01:25.5]} 35. h4 {[%clk 0:00:48.4]} 35... Rc2 {[%clk
0:01:10.9]} 36. h5 {[%clk 0:00:36.9]} 36... g5+ {[%clk 0:01:08.2]} 37. Kg3
{[%clk 0:00:36.7]} 37... Rc3 {[%clk 0:01:06.5]} 38. gxf5+ {[%clk 0:00:30]} 38...
Kxf5 {[%clk 0:01:07.4]} 39. Rd7 {[%clk 0:00:26.9]} 39... Rxe3 {[%clk 0:01:06.5]}
40. Rf7+ {[%clk 0:00:21.2]} 40... Ke6 {[%clk 0:01:05.7]} 41. Rxa7 {[%clk
0:00:21.7]} 41... Ra3 {[%clk 0:01:00.2]} 42. Rb7 {[%clk 0:00:19.4]} 42... Rb3
{[%clk 0:00:47.7]} 43. a5 {[%clk 0:00:19.2]} 43... b5 {[%clk 0:00:48.4]} 44. a6
{[%clk 0:00:14]} 44... Ra3 {[%clk 0:00:47.7]} 45. a7 {[%clk 0:00:09.5]} 45...
Kf6 {[%clk 0:00:47.4]} 46. Kf2 {[%clk 0:00:07.4]} 46... b4 {[%clk 0:00:45.8]}
47. Ke2 {[%clk 0:00:03.9]} 47... b3 {[%clk 0:00:44.4]} 48. Kd2 {[%clk
0:00:04.4]} 48... Kf5 {[%clk 0:00:40]} 49. Kc3 {[%clk 0:00:04.2]} 49... Kf4
{[%clk 0:00:40.1]} 50. Rf7+ {[%clk 0:00:04.2]} 50... Kg3 {[%clk 0:00:39.9]} 51.
Kb2 {[%clk 0:00:04.7]} 51... Ra6 {[%clk 0:00:37.5]} 52. Kxb3 {[%clk 0:00:05]}
52... Kh4 {[%clk 0:00:36.9]} 53. Kb4 {[%clk 0:00:04.8]} 53... Kxh5 {[%clk
0:00:37.4]} 54. Kb5 {[%clk 0:00:05.2]} 54... Ra1 {[%clk 0:00:37.7]} 55. Kb6
{[%clk 0:00:05.7]} 55... Rb1+ {[%clk 0:00:38.3]} 56. Kc7 {[%clk 0:00:05.7]}
56... Ra1 {[%clk 0:00:38.5]} 57. Kb8 {[%clk 0:00:06.1]} 57... Kh4 {[%clk
0:00:37.3]} 58. a8=Q {[%clk 0:00:03.5]} 58... Rxa8+ {[%clk 0:00:37.6]} 59. Kxa8
{[%clk 0:00:04.4]} 59... h5 {[%clk 0:00:38.3]} 60. Kb7 {[%clk 0:00:04.7]} 60...
Kg3 {[%clk 0:00:38.5]} 61. Kc6 {[%clk 0:00:04.8]} 61... h4 {[%clk 0:00:38.6]}
62. Kd5 {[%clk 0:00:05.2]} 62... h3 {[%clk 0:00:39.1]} 63. Ke4 {[%clk
0:00:05.6]} 63... g4 {[%clk 0:00:39.4]} 64. Rg7 {[%clk 0:00:05.1]} 64... h2
{[%clk 0:00:39.8]} 65. Rxg4+ {[%clk 0:00:04.6]} 65... Kh3 {[%clk 0:00:39.6]} 66.
Rg8 {[%clk 0:00:05.1]} 66... h1=Q {[%clk 0:00:38.7]} 67. Rh8+ {[%clk 0:00:05.5]}
67... Kg2 {[%clk 0:00:39]} 68. Rxh1 {[%clk 0:00:06]} 68... Kxh1 {[%clk
0:00:39.9]} 69. f4 {[%clk 0:00:06.7]} 1-0

[Event "Late-Titled-Tuesday-Blitz-June-04-2024"]
[Site "Chess.com"]
[Date "2024.06.04"]
[Round "6"]
[White "Bugcrusher"]
[Black "BabageldiAnnaberdiyev"]
[Result "0-1"]
[WhiteElo "2435"]
[BlackElo "2622"]
[TimeControl "180+1"]
[EndTime "15:06:32 PDT"]
[Termination "BabageldiAnnaberdiyev won by resignation"]

1. d4 {[%clk 0:02:59.1]} 1... e6 {[%clk 0:03:00.9]} 2. e4 {[%clk 0:02:57.8]}
2... d5 {[%clk 0:02:59.4]} 3. e5 {[%clk 0:02:57.6]} 3... c5 {[%clk 0:02:58.7]}
4. c3 {[%clk 0:02:57.3]} 4... Nc6 {[%clk 0:02:59.3]} 5. Nf3 {[%clk 0:02:57.1]}
5... Qb6 {[%clk 0:02:59.9]} 6. Na3 {[%clk 0:02:56.6]} 6... cxd4 {[%clk
0:02:55.6]} 7. cxd4 {[%clk 0:02:56.2]} 7... Nge7 {[%clk 0:02:55.3]} 8. Bd3
{[%clk 0:02:53]} 8... Nf5 {[%clk 0:02:55.3]} 9. Nc2 {[%clk 0:02:51.7]} 9... Bd7
{[%clk 0:02:46.7]} 10. O-O {[%clk 0:02:43.6]} 10... Rc8 {[%clk 0:02:45.7]} 11.
a3 {[%clk 0:02:35.8]} 11... a5 {[%clk 0:02:45.1]} 12. Rb1 {[%clk 0:02:32.9]}
12... Be7 {[%clk 0:02:43.5]} 13. b4 {[%clk 0:02:23.4]} 13... axb4 {[%clk
0:02:43.3]} 14. axb4 {[%clk 0:02:23.2]} 14... O-O {[%clk 0:02:41.5]} 15. b5
{[%clk 0:02:22.8]} 15... Na5 {[%clk 0:02:39]} 16. Ne3 {[%clk 0:02:20.7]} 16...
Nc4 {[%clk 0:02:30.5]} 17. Nxf5 {[%clk 0:02:19.4]} 17... exf5 {[%clk 0:02:29.3]}
18. Re1 {[%clk 0:01:57.7]} 18... h6 {[%clk 0:02:23]} 19. h4 {[%clk 0:01:55.9]}
19... Be6 {[%clk 0:02:22.2]} 20. h5 {[%clk 0:01:54.7]} 20... Rfd8 {[%clk
0:02:10.8]} 21. Bf4 {[%clk 0:01:53.3]} 21... Bf8 {[%clk 0:02:10.3]} 22. Qe2
{[%clk 0:01:44.2]} 22... Ra8 {[%clk 0:02:05.8]} 23. Ra1 {[%clk 0:01:30]} 23...
Rxa1 {[%clk 0:02:03.5]} 24. Rxa1 {[%clk 0:01:28.1]} 24... Qxb5 {[%clk
0:02:03.9]} 25. Nh4 {[%clk 0:01:26.5]} 25... Qd7 {[%clk 0:01:59.7]} 26. Qc2
{[%clk 0:01:20.4]} 26... Rc8 {[%clk 0:01:59.4]} 27. Bxf5 {[%clk 0:01:07.7]}
27... Nxe5 {[%clk 0:01:47.1]} 28. Qb1 {[%clk 0:01:07.5]} 28... Nc6 {[%clk
0:01:38.1]} 29. Bxe6 {[%clk 0:00:58.4]} 29... Qxe6 {[%clk 0:01:36.6]} 30. Qxb7
{[%clk 0:00:55.4]} 30... Nxd4 {[%clk 0:01:33.4]} 31. Be3 {[%clk 0:00:55.2]}
31... Nf5 {[%clk 0:01:16.7]} 32. Nxf5 {[%clk 0:00:54.6]} 32... Qxf5 {[%clk
0:01:17.6]} 33. Rd1 {[%clk 0:00:54.7]} 33... Rd8 {[%clk 0:01:15.2]} 34. Qc7
{[%clk 0:00:31.1]} 34... Qd7 {[%clk 0:01:14.4]} 35. Qxd7 {[%clk 0:00:28]} 35...
Rxd7 {[%clk 0:01:15.3]} 36. Bd4 {[%clk 0:00:28.3]} 36... g6 {[%clk 0:01:08.1]}
37. hxg6 {[%clk 0:00:27.2]} 37... fxg6 {[%clk 0:01:09]} 38. g4 {[%clk
0:00:26.4]} 38... Bg7 {[%clk 0:01:09.2]} 39. Kg2 {[%clk 0:00:25]} 39... Bxd4
{[%clk 0:01:07.7]} 40. Rxd4 {[%clk 0:00:25]} 40... Kf7 {[%clk 0:01:08.4]} 41. f4
{[%clk 0:00:25]} 41... Kf6 {[%clk 0:01:07.3]} 42. Kf3 {[%clk 0:00:22.7]} 42...
h5 {[%clk 0:01:07.7]} 43. gxh5 {[%clk 0:00:22.1]} 43... gxh5 {[%clk 0:01:08.6]}
44. Ra4 {[%clk 0:00:21.2]} 44... Rb7 {[%clk 0:01:03.5]} 45. Ra6+ {[%clk
0:00:20]} 45... Kf5 {[%clk 0:01:02.1]} 46. Rh6 {[%clk 0:00:19.2]} 46... Rb3+
{[%clk 0:01:02.4]} 47. Ke2 {[%clk 0:00:19.1]} 47... Rh3 {[%clk 0:00:59.3]} 48.
Rd6 {[%clk 0:00:17.1]} 48... Ke4 {[%clk 0:00:59.2]} 49. f5 {[%clk 0:00:17]}
49... Rh2+ {[%clk 0:00:59.7]} 50. Kf1 {[%clk 0:00:17.2]} 50... Rh4 {[%clk
0:00:58.6]} 51. Kg2 {[%clk 0:00:16.3]} 51... Rf4 {[%clk 0:00:54.7]} 52. f6
{[%clk 0:00:16.1]} 52... d4 {[%clk 0:00:55.1]} 53. Kg3 {[%clk 0:00:15.6]} 53...
h4+ {[%clk 0:00:54.9]} 54. Kh3 {[%clk 0:00:14.4]} 54... d3 {[%clk 0:00:55.8]}
55. Re6+ {[%clk 0:00:13.5]} 55... Kd4 {[%clk 0:00:55.1]} 56. Rd6+ {[%clk
0:00:13.3]} 56... Ke3 {[%clk 0:00:54.9]} 57. Re6+ {[%clk 0:00:12.8]} 57... Kf2
{[%clk 0:00:44.4]} 58. Rd6 {[%clk 0:00:12.4]} 58... Ke2 {[%clk 0:00:44.6]} 59.
Re6+ {[%clk 0:00:12.5]} 59... Kd1 {[%clk 0:00:44.7]} 60. f7 {[%clk 0:00:12.1]}
60... d2 {[%clk 0:00:43.4]} 61. Re4 {[%clk 0:00:09.5]} 61... Rxf7 {[%clk
0:00:41.9]} 62. Kxh4 {[%clk 0:00:09.8]} 62... Rc7 {[%clk 0:00:40.6]} 0-1

[Event "Late-Titled-Tuesday-Blitz-June-04-2024"]
[Site "Chess.com"]
[Date "2024.06.04"]
[Round "6"]
[White "margarita_2703"]
[Black "dealshark"]
[Result "1-0"]
[WhiteElo "2285"]
[BlackElo "2396"]
[TimeControl "180+1"]
[EndTime "15:06:34 PDT"]
[Termination "margarita_2703 won by resignation"]

1. e4 {[%clk 0:03:00.9]} 1... c6 {[%clk 0:03:00.1]} 2. d4 {[%clk 0:02:58.9]}
2... d5 {[%clk 0:03:01]} 3. e5 {[%clk 0:02:59.3]} 3... c5 {[%clk 0:03:01.3]} 4.
dxc5 {[%clk 0:02:57.7]} 4... e6 {[%clk 0:03:01.6]} 5. c3 {[%clk 0:02:26.8]} 5...
Bxc5 {[%clk 0:03:01]} 6. Qg4 {[%clk 0:02:13]} 6... Ne7 {[%clk 0:02:58.8]} 7. Bd3
{[%clk 0:02:10.1]} 7... Nbc6 {[%clk 0:02:52.2]} 8. Nf3 {[%clk 0:02:05.9]} 8...
g6 {[%clk 0:02:42.9]} 9. b4 {[%clk 0:01:57.3]} 9... Bb6 {[%clk 0:02:40.7]} 10.
a3 {[%clk 0:01:56.6]} 10... Qc7 {[%clk 0:02:38.8]} 11. Bf4 {[%clk 0:01:51.5]}
11... Nf5 {[%clk 0:02:27.2]} 12. Nbd2 {[%clk 0:01:45.4]} 12... h5 {[%clk
0:02:24.9]} 13. Qh3 {[%clk 0:01:43.5]} 13... Bd7 {[%clk 0:02:23.5]} 14. g4
{[%clk 0:01:39.8]} 14... Ng7 {[%clk 0:02:19.4]} 15. c4 {[%clk 0:01:37.9]} 15...
dxc4 {[%clk 0:01:53.2]} 16. Nxc4 {[%clk 0:01:38.8]} 16... Nd4 {[%clk 0:01:49.3]}
17. Nd6+ {[%clk 0:01:36.3]} 17... Ke7 {[%clk 0:01:48.7]} 18. Bg5+ {[%clk
0:01:33.8]} 18... Kf8 {[%clk 0:01:44.1]} 19. Nxd4 {[%clk 0:01:33]} 19... Bxd4
{[%clk 0:01:41.5]} 20. Rc1 {[%clk 0:01:33.9]} 20... Qb6 {[%clk 0:01:35.4]} 21.
Qf3 {[%clk 0:01:20.1]} 21... Nf5 {[%clk 0:01:08.5]} 22. gxf5 {[%clk 0:01:03.9]}
22... gxf5 {[%clk 0:01:01.8]} 23. Be3 {[%clk 0:01:00.4]} 23... Bc6 {[%clk
0:00:54.8]} 24. Bxd4 {[%clk 0:00:56.7]} 24... Bxf3 {[%clk 0:00:41.3]} 25. Bxb6
{[%clk 0:00:54.6]} 25... Bxh1 {[%clk 0:00:30.9]} 26. Bc5 {[%clk 0:00:51.5]}
26... Kg7 {[%clk 0:00:29.7]} 27. Ke2 {[%clk 0:00:46]} 27... Bd5 {[%clk
0:00:26.6]} 28. Nc4 {[%clk 0:00:41.1]} 28... b6 {[%clk 0:00:17.7]} 29. Be3
{[%clk 0:00:35.5]} 29... Rac8 {[%clk 0:00:15.7]} 30. Nd6 {[%clk 0:00:35.8]}
30... Rxc1 {[%clk 0:00:15.4]} 31. Bxc1 {[%clk 0:00:36.7]} 31... Rg8 {[%clk
0:00:14.6]} 32. Bg5 {[%clk 0:00:29]} 32... Kf8 {[%clk 0:00:14.3]} 33. Bf6 {[%clk
0:00:29.9]} 33... Rg2 {[%clk 0:00:13.3]} 34. Nc8 {[%clk 0:00:24.9]} 34... Rxh2
{[%clk 0:00:11.3]} 35. Nxa7 {[%clk 0:00:24.7]} 35... Rh1 {[%clk 0:00:10.2]} 36.
Nc8 {[%clk 0:00:24.9]} 36... h4 {[%clk 0:00:08.5]} 37. Nxb6 {[%clk 0:00:24.9]}
37... Bg2 {[%clk 0:00:08.3]} 38. Bxh4 {[%clk 0:00:21.9]} 38... Rxh4 {[%clk
0:00:08.1]} 39. Nc4 {[%clk 0:00:22.4]} 39... Bd5 {[%clk 0:00:08.1]} 40. Ne3
{[%clk 0:00:08.5]} 40... Rh1 {[%clk 0:00:06.7]} 41. Nxd5 {[%clk 0:00:08.5]}
41... exd5 {[%clk 0:00:07.6]} 42. a4 {[%clk 0:00:06.3]} 42... Ra1 {[%clk
0:00:07]} 43. a5 {[%clk 0:00:06.4]} 43... Ke7 {[%clk 0:00:07.8]} 44. a6 {[%clk
0:00:06.6]} 44... Kd7 {[%clk 0:00:07.1]} 45. Bxf5+ {[%clk 0:00:06.2]} 45... Kc6
{[%clk 0:00:07.3]} 46. Bd3 {[%clk 0:00:07.1]} 46... Kb6 {[%clk 0:00:07.3]} 47.
b5 {[%clk 0:00:08]} 47... Kc5 {[%clk 0:00:06.8]} 48. Ke3 {[%clk 0:00:08.4]}
48... Ra4 {[%clk 0:00:06.3]} 49. f4 {[%clk 0:00:08.2]} 49... Ra5 {[%clk
0:00:06.3]} 50. f5 {[%clk 0:00:08.4]} 50... Ra4 {[%clk 0:00:06.1]} 51. e6 {[%clk
0:00:08.3]} 51... fxe6 {[%clk 0:00:06.6]} 52. fxe6 {[%clk 0:00:09.2]} 52... Kd6
{[%clk 0:00:07.2]} 53. b6 {[%clk 0:00:09.2]} 53... Kc6 {[%clk 0:00:03.7]} 54. b7
{[%clk 0:00:09.3]} 54... Kc7 {[%clk 0:00:03]} 55. e7 {[%clk 0:00:09.3]} 55...
Kb8 {[%clk 0:00:03.4]} 56. e8=Q+ {[%clk 0:00:09.3]} 1-0